Cogmind - Beta 13 @@@ ROGUE MODE // 2024.06.16 @ 17:18:51 Player: art-hropod Result: Self-destructed Performance ------------- Evolutions (2) 1000 Regions Visited (3) 600 Robots Destroyed (34) 170 Value Destroyed (828) 828 Prototype IDs (1) 20 Alien Tech Used (0) 0 Bonus (0) 0 TOTAL SCORE: 2618 Bonus ------- None Cogmind --------- Core Integrity 410/550 Matter 148/300 Energy 100/100 System Corruption 0% Temperature Cool (18) Movement Core (350) Ox6 Location -8/Materials Parts ------- > --- POWER (1) -------- (None) > --- PROPULSION (4) --- (None) > --- UTILITY (4) ------ Improved Heat Sink Large Storage Unit Signal Interpreter > --- WEAPON (2) ------- (None) > --- INVENTORY (15) --- Aluminum Leg Aluminum Leg Compact Wheel Improved Heat Sink Small Storage Unit Trap Scanner Targeting Computer Light Armor Plating Hardened Light Armor Plating Hardened Light Armor Plating Hardened Light Armor Plating Hardened Light Armor Plating Mini Grenade Launcher Peak State ------------ > --- POWER ------------ Improved Ion Engine > --- PROPULSION ------- Light Treads Light Treads Aluminum Leg Aluminum Leg > --- UTILITY ---------- Improved Heat Sink Improved Heat Sink Large Storage Unit Signal Interpreter > --- WEAPON ----------- Light Assault Rifle Improved Assault Rifle > --- INVENTORY -------- Aluminum Leg Aluminum Leg Compact Wheel Improved Heat Sink Small Storage Unit Trap Scanner Targeting Computer Light Armor Plating Hardened Light Armor Plating Hardened Light Armor Plating Hardened Light Armor Plating Hardened Light Armor Plating Mini Grenade Launcher [Rating: 20] Favorites ----------- Power Ion Engine Engine Ion Engine Power Core Light Nuclear Core Propulsion Light Treads Treads Light Treads Leg Aluminum Leg Utility Large Storage Unit Device Improved Heat Sink Storage Large Storage Unit Processor Signal Interpreter Weapon Light Assault Rifle Energy Gun Spread Laser Ballistic Gun Light Assault Rifle Launcher Mini Grenade Launcher Build | -11 -10 -9 -8 ------- Run | Yrd Mat Mat Mat Slots Evolved 4 | . . 2 2 Power . | . . . . Propulsion 2 | . . 2 . Utility 2 | . . . 2 Weapon . | . . . . Parts Attached 29 | 7 2 12 8 Power 4 | 1 . 3 . Engine 3 | 1 . 2 . Core 1 | . . 1 . Reactor . | . . . . Propulsion 9 | 2 . 5 2 Treads 5 | 2 . 2 1 Leg 4 | . . 3 1 Wheel . | . . . . Hover . | . . . . Flight . | . . . . Utility 6 | 2 2 . 2 Device 2 | . . . 2 Storage 3 | 2 1 . . Processor 1 | . 1 . . Hackware . | . . . . Protection . | . . . . Artifact . | . . . . Weapon 10 | 2 . 4 4 Energy Gun 4 | 1 . 1 2 Energy Cannon . | . . . . Ballistic Gun 5 | 1 . 2 2 Ballistic Cannon . | . . . . Launcher 1 | . . 1 . Special Weapon . | . . . . Impact Weapon . | . . . . Slashing Weapon . | . . . . Piercing Weapon . | . . . . Special Melee Weapon . | . . . . Unidentified Prototypes 1 | . . 1 . Parts Lost 16 | . . 5 11 Power 4 | . . 3 1 Propulsion 7 | . . 2 5 Utility 1 | . . . 1 Weapon 4 | . . . 4 Highest Loss Streak 10 | . . 3 10 To Critical Strikes . | . . . . Average Slot Usage (%) 88 | . 87 90 77 Engine 10 | . 14 10 8 Treads 20 | . 28 20 13 Leg 12 | . . 14 14 Storage 11 | . 14 11 9 Processor 9 | . 2 11 9 Energy Gun 8 | . 14 7 9 Ballistic Gun 13 | . 14 14 7 Naked Turns . | . . . . Heaviest Build 34 | 13 28 33 34 Greatest Support 40 | 40 40 40 40 Greatest Overweight (x) 2 | 2 . 1 1 Average Overweight (x) . | . . . . Largest Inventory Capacity 15 | 8 15 15 15 Average Capacity 14 | 7 12 15 15 Most Carried 15 | 7 9 15 15 Average Carried 11 | 3 7 12 14 Final Capacity 15 | 8 15 15 15 Final Carried 14 | 7 8 14 13 Class Distribution -------------------- 67% | Mutant 32% | Scavenger-Mutant Dominant Class ---------------- Mutant | -10/Materials Mutant | -9/Materials Scavenger-Mutant | -8/Materials Resources | -11 -10 -9 -8 ----------- Run | Yrd Mat Mat Mat Matter Collected 514 | 278 16 152 68 Remotely . | . . . . Salvage Created 1201 | 52 98 890 161 Parts 60 | 1 4 48 7 Haulers Intercepted 4 | . 1 3 . Recyclers Shooed 2 | . . 2 . Parts Field Recycled . | . . . . Retrieved Matter . | . . . . Parts Self-Destructed . | . . . . Prevented . | . . . . Kills | -11 -10 -9 -8 ------- Run | Yrd Mat Mat Mat Combat Hostiles Destroyed 24 | . 1 19 4 Guns 19 | . 1 14 4 AOE 5 | . . 5 . Classes Destroyed 8 | 1 3 4 . Builder 1 | . . 1 . Hauler 4 | . 1 3 . Recycler 3 | 1 . 2 . Watcher 2 | . 1 1 . Swarmer 8 | . 1 7 . Grunt 11 | . . 8 3 Duelist 2 | . . 1 1 Sentry 3 | . . 3 . Best Kill Streak 5 | 1 2 5 1 Combat Bots Only 5 | . 1 5 1 Max Kills in Single Turn 5 | 1 1 5 1 Gunslinging . | . . . . Exploded 5 | . . 5 . Melee . | . . . . Uniques/NPCs Destroyed . | . . . . Combat | -11 -10 -9 -8 -------- Run | Yrd Mat Mat Mat Hostile Shots Fired 195 | . 26 107 62 Missed 39 | . 7 21 11 Damage Taken 2021 | . 160 1042 819 Core 356 | . 31 185 140 Absorbed by Shields . | . . . . Core Remaining (%) 80 | 100 87 53 . Volleys Fired 120 | 8 7 78 27 Largest 2 | 2 2 2 2 Hottest 115 | 70 70 88 115 Shots Fired 238 | 16 14 156 52 Gun 237 | 16 14 155 52 Cannon . | . . . . Launcher 1 | . . 1 . Special . | . . . . Kinetic 161 | 8 7 113 33 Thermal 76 | 8 7 42 19 Explosive 1 | . . 1 . Electromagnetic . | . . . . Robot Hit Streak 23 | 3 4 9 23 Robot Miss Streak 8 | 2 3 8 4 Penetration Max . | . . . . Secondary Targets 2 | . . 2 . Max Gunslinging Chain 1 | . . 1 . Shots Hit Robots 172 | 9 7 110 46 Core Hits 103 | 2 4 67 30 Critical Kills . | . . . . Critical Parts Destroyed 2 | . . 2 . Critical Strikes 5 | . . 2 3 Burn 3 | . . . 3 Destroy 2 | . . 2 . Melee Attacks . | . . . . Impact . | . . . . Slashing . | . . . . Piercing . | . . . . Sneak Attacks . | . . . . Combat Hostiles . | . . . . Follow-up Attacks . | . . . . Damage Inflicted 2156 | 101 69 1373 613 Guns 1883 | 101 69 1100 613 Cannons . | . . . . Explosions 268 | . . 268 . Melee . | . . . . Ramming 5 | . . 5 . Kinetic 1069 | 26 31 668 344 Thermal 814 | 75 38 432 269 Explosive 268 | . . 268 . Electromagnetic . | . . . . Impact . | . . . . Slashing . | . . . . Piercing . | . . . . Highest Corruption . | . . . . Average Corruption . | . . . . Corruption Purged . | . . . . Corruption Blocked . | . . . . Overload Shots . | . . . . Overflow Damage 7 | . . 7 . Projectiles . | . . . . Explosions 7 | . . 7 . Melee . | . . . . Knockbacks . | . . . . Impact . | . . . . Kinetic . | . . . . Secondary . | . . . . Self-Inflicted Damage 42 | . . 42 . Shots 1 | . . 1 . Rammed 1 | . . 1 . Targets Rammed 1 | . . 1 . Kicked . | . . . . Crushed . | . . . . Highest Temperature 279 | 140 60 279 189 Average Temperature 59 | 68 25 53 78 Received Heat Transfer 816 | . . 375 441 Siege Activations . | . . . . Robots Corrupted . | . . . . Combat Hostiles . | . . . . Parts Fried . | . . . . Impact Corruptions . | . . . . Robots Melted . | . . . . Combat Hostiles . | . . . . Parts Melted 4 | . 3 . 1 Heat Transferred 1872 | 222 111 821 718 Parts Sabotaged . | . . . . Parts Stolen . | . . . . Parts Stripped . | . . . . Power Chain Reactions . | . . . . Alert | -11 -10 -9 -8 ------- Run | Yrd Mat Mat Mat Peak Influence 318 | 5 58 318 233 Initial 133 | . 3 24 133 Average 155 | 3 18 185 186 Maximum Alert Level 1 | . . 1 1 Low Security (%) 63 | 100 100 55 60 Level 1 36 | . . 44 39 Level 2 . | . . . . Level 3 . | . . . . Level 4 . | . . . . Level 5 . | . . . . High Security . | . . . . Max Security . | . . . . Squads Dispatched 3 | . . 2 1 Investigation 1 | . . 1 . Extermination . | . . . . Reinforcement 2 | . . 1 1 Assault . | . . . . Garrison . | . . . . Intercept . | . . . . Searches Triggered . | . . . . Construction Impeded . | . . . . Haulers Reinforced . | . . . . Active Scanning Responses . | . . . . Cargo Convoy Interrupts . | . . . . Stealth | -11 -10 -9 -8 --------- Run | Yrd Mat Mat Mat Distress Signals 4 | . 1 3 . Communications Jammed . | . . . . Distress Signals . | . . . . Times Spotted 45 | . 11 26 8 Peak Tracking Total 8 | . 8 5 4 Tactical Retreats 2 | . . 1 1 Traps | -11 -10 -9 -8 ------- Run | Yrd Mat Mat Mat Traps Triggered 2 | . . 1 1 Indirectly . | . . . . Trap Hack Attempts . | . . . . Triggered . | . . . . Disarmed . | . . . . Reprogrammed . | . . . . Reused . | . . . . Traps Extracted . | . . . . Installed . | . . . . Triggered . | . . . . Machines | -11 -10 -9 -8 ---------- Run | Yrd Mat Mat Mat Machines Disabled 3 | . . 3 . Max in Single Turn 2 | . . 2 . Machines Repaired . | . . . . Machines Dismantled . | . . . . Machines Sabotaged . | . . . . Overloaded Fab Kills . | . . . . Hacking | -11 -10 -9 -8 --------- Run | Yrd Mat Mat Mat Machines Accessed 6 | . 3 3 . Terminals 6 | . 3 3 . Fabricators . | . . . . Repair Stations . | . . . . Recycling Units . | . . . . Scanalyzers . | . . . . Garrison Access . | . . . . Total Hacks 13 | . 7 6 . Successful 6 | . 1 5 . Failed 7 | . 6 1 . Catastrophic 2 | . 2 . . Database Lockouts . | . . . . Manual 8 | . 8 . . Terminals 13 | . 7 6 . Fabricators . | . . . . Repair Stations . | . . . . Recycling Units . | . . . . Scanalyzers . | . . . . Garrison Access . | . . . . Terminal Hacks 6 | . 1 5 . Record 5 | . . 5 . Robot Analysis 1 | . 1 . . Fabricator Hacks . | . . . . Repair Station Hacks . | . . . . Recycling Unit Hacks . | . . . . Scanalyzer . | . . . . Garrison Access Hacks . | . . . . Unauthorized Hacks . | . . . . Terminals . | . . . . Fabricators . | . . . . Repair Stations . | . . . . Recycling Units . | . . . . Scanalyzers . | . . . . Garrison Access . | . . . . Data Cores Recovered . | . . . . Used . | . . . . Hacking Detections 3 | . 2 1 . Full Trace Events . | . . . . Feedback Events . | . . . . Feedback Blocked . | . . . . Robot Schematics Acquired . | . . . . Robots Built . | . . . . Authchips . | . . . . Time . | . . . . Total Robot Build Rating . | . . . . Part Schematics Acquired . | . . . . Parts Built . | . . . . Authchips . | . . . . Time . | . . . . Total Part Build Rating . | . . . . Parts Repaired . | . . . . Time . | . . . . Parts Recycled . | . . . . Recycled Matter . | . . . . Retrieved Matter . | . . . . Retrieved Components . | . . . . Parts Scanalyzed . | . . . . Part Schematics Acquired . | . . . . Parts Damaged . | . . . . Bothacking | -11 -10 -9 -8 ------------ Run | Yrd Mat Mat Mat Used RIF Installer . | . . . . Robots Hacked . | . . . . Non-combat . | . . . . Combat . | . . . . Robot Hacks Applied . | . . . . Relay Couplers Released . | . . . . Fabnet Peak Effective % . | . . . . Robots Rewired . | . . . . Allies Hacked . | . . . . Hacks Repelled . | . . . . Allies | -11 -10 -9 -8 -------- Run | Yrd Mat Mat Mat Total Allies . | . . . . Largest Group . | . . . . Highest-Rated Group . | . . . . Highest-Rated Ally . | . . . . Total Orders . | . . . . Ally Attacks . | . . . . Total Damage . | . . . . Kills . | . . . . Allies Corrupted . | . . . . Allies Melted . | . . . . Intel | -11 -10 -9 -8 ------- Run | Yrd Mat Mat Mat Robot Analysis Total 1 | . 1 . . Derelict Logs Recovered . | . . . . Drone Launches . | . . . . Drone Recoveries . | . . . . Exploration | -11 -10 -9 -8 ------------- Run | Yrd Mat Mat Mat Turns Passed 1642 | 113 172 1199 158 Spaces Moved 764 | 48 93 581 42 Core 6 | 6 . . . Treads 660 | 42 93 483 42 Legs 98 | . . 98 . Wheels . | . . . . Hover . | . . . . Flight . | . . . . Fastest Speed 50 | 50 160 120 160 Average Speed 162 | 155 160 163 165 Slowest Speed 240 | 160 160 240 240 Overloaded Moves . | . . . . Propulsion Burnouts . | . . . . Robots Hopped . | . . . . Cave-ins Triggered . | . . . . Exploration Rate (%) 23 | 6 24 58 5 Regions Visited 3 Branch Regions . Pre-discovered Areas . | . . . . Known Exits Taken 2 | . 1 1 . Unknown Exits Taken 1 | 1 . . . Scrap Searched . | . . . . Spaces Dug . | . . . . Terrain Destroyed 33 | . . 33 . Melee . | . . . . Projectile . | . . . . AOE 33 | . . 33 . Terrain Rammed . | . . . . Walls Destroyed . | . . . . Machines Disabled . | . . . . Actions | -11 -10 -9 -8 --------- Run | Yrd Mat Mat Mat Total 943 | 70 104 690 79 Wait 3 | . . 3 . Move 761 | 47 92 580 42 Hop . | . . . . Pick Up 24 | 7 2 13 2 Fast Attach 14 | 6 1 2 5 Attach 12 | 1 1 7 3 Detach 2 | 1 . 1 . Swap 3 | . . 3 . Drop 3 | . 1 2 . Fire 120 | 8 7 78 27 Melee . | . . . . Ram . | . . . . Kick . | . . . . Crush 1 | . . 1 . Escape Stasis . | . . . . Rewire . | . . . . Trap . | . . . . Miscellaneous . | . . . . Route ------- -11/Scrapyard -10/Materials (discovered 2 exits: *Mat / [*Min]) -9/Materials (discovered 4 exits: *Mat x2 / [*Min] / *Sto) -8/Materials History --------- Turn | Location | Event 12 | -11/Scrapyard | Discovered new exit (range 15) 114 | -11/Scrapyard | Entered Materials 256 | -10/Materials | Discovered new exit (range 11) 259 | -10/Materials | Discovered new exit (range 15) 285 | -10/Materials | Identified exit to Materials 286 | -10/Materials | Entered another Materials area 286 | -9/Materials | Evolved 2 slots: Propulsion x2 317 | -9/Materials | Build established: Mutant 600 | -9/Materials | Discovered new exit (range 8) 610 | -9/Materials | Identified exit to Materials 754 | -9/Materials | Lost 3 parts (2p1n) 1010 | -9/Materials | Discovered new exit (range 16) 1209 | -9/Materials | Discovered exit to Materials (range 15) 1333 | -9/Materials | Discovered new exit (range 10) 1349 | -9/Materials | Identified exit to Storage 1395 | -9/Materials | Build established: Scavenger-Mutant 1485 | -9/Materials | Entered another Materials area 1485 | -8/Materials | Evolved 2 slots: Utility x2 1643 | -8/Materials | Self-destructed Last Messages --------------- 01595_ G-47 Trooper heat damages Particle Gun. 01595_ G-47 Trooper overheating. 01602_ G-47 Trooper destroyed. 01604_ Lgt. Treads destroyed. 01610_ Imp. Heat Sink destroyed. 01610_ M-13 Machinist repairs G-47 Trooper. 01614_ Lgt. Treads destroyed. 01615_ M-13 Machinist repairs Particle Gun. 01621_ R-06 Scavenger collects Aluminum Leg. 01624_ M-13 Machinist repairs G-47 Trooper. 01625_ R-06 Scavenger collects Particle Gun. 01630_ G-47 Trooper destroyed. 01631_ Imp. Ion Engine destroyed. 01632_ M-13 Machinist repairs G-47 Trooper. 01633_ R-06 Scavenger collects Imp. Heat Sink. 01635_ Aluminum Leg destroyed. 01637_ R-06 Scavenger collects Aluminum Leg. 01639_ Imp. Assault Rifle destroyed. 01641_ Aluminum Leg destroyed. 01643_ Lgt. Assault Rifle destroyed. Map ----- +----------------------------------------------------+ | | | | | | | | | | | | | ?????????????????????????????????????????????????? | | ?????????????????????????????????????????????????? | | ?????????????????????????????????????????????????? | | ???#########?????????????????????????????????????? | | ???# #?????????????????????????????????????? | | ???# #####+#???????????????????????????????? | | ???# #?????????????????????????? | | ???######+########???????????????????????????????? | | ????# #??????????????????????????????????? | | ????# """ #??????????????????????????????????? | | ????# "T" #??????????????????????????????????? | | ????# ################???????????????????? | | ????# + / + #???????????????????? | | ????# """ #########"" !#???????????????????? | | ????# """ #???????#"T #???????????????????? | | ????# """ #???????#"" #???????????????????? | | ????###########???????# #???????????????????? | | ??????????????????????# #???????????????????? | | ??????????????????????###/####???????????????????? | | ??????????????????????# @ #????????????????????? | | ??????????????????????# #????????????????????? | | ??????????????????????+ %Tg g ??????????????????? | | ??????????????????????# m ####?????????????????? | | ??????????????????????# [ #????????????????????? | | ??????????????????????### ###????????????????????? | | ????????????????????????#r#??????????????????????? | | ????????????????????????# #??????????????????????? | | ????????????????????????# #??????????????????????? | | ????????????????????????? #??????????????????????? | | ????????????????????????? #??????????????????????? | | ????????????????????????? #??????????????????????? | | ?????????????????????????##??????????????????????? | | ?????????????????????????????????????????????????? | | ?????????????????????????????????????????????????? | | ?????????????????????????????????????????????????? | | ?????????????????????????????????????????????????? | | ?????????????????????????????????????????????????? | | ?????????????????????????????????????????????????? | | ?????????????????????????????????????????????????? | | ?????????????????????????????????????????????????? | | ?????????????????????????????????????????????????? | | ?????????????????????????????????????????????????? | | ?????????????????????????????????????????????????? | | ?????????????????????????????????????????????????? | +----------------------------------------------------+ Best States ------------- Heat Dissipation 31 Energy Generation 14 Energy Capacity 265 Matter Stores 300 Matter Capacity 300 Sight Range 16 Terrain Scan Density 10 Evasion (%) 45 Recoil Reduction 2 Item Schematics ----------------- None Robot Schematics ------------------ None Fabricated ------------ Nothing Alien Tech Used ----------------- None Achievements -------------- None Challenges ------------ None Game ------ Seed LaserGlidesysChip Manual? 0 Play Time 00:15:45 Cumulative 71.1 hours Start 2024.05.29 @ 18:51:22 End 2024.06.16 @ 17:18:51 Sessions 3 Manual Loads 0 Difficulty Rogue Special Mode None Game No. 95 Rogue 71 Adventurer 17 Explorer 7 Win Type - Total 4 Types 4/0/0/0/0/0/0/0/0 Lore% 21 Gallery% 43 Achievement% 33 Wizard Run 0 Options --------- Layout 0 ASCII 0 Keyboard 0 Movement Mouse Keybinds 0 Fullscreen 1 Font 18/SmallcapsGlow Map View 76x50 Zoom Use 0% Tactical HUD 1 Map Filters NONE Filters NONE Steam 1 RUN: 14dc9cf6-35db-42b6-93fd-ff805d6f5ccd